bitfinex/quotes_BTCUSD_20250403
["timestamp","ask_amount","ask_price","bid_price","bid_amount"]
[1743688281555,0.08,82307.0,82306.0,0.1167556]
[1743688281771,0.08,82307.0,82306.0,0.14344545]
[1743688282013,0.08,82307.0,82306.0,0.1289046]
[1743688282233,0.08,82307.0,82305.0,0.0003362]
[1743688282474,0.322994,82307.0,82305.0,0.00079853]
[1743688283201,0.012149,82306.0,82305.0,0.00079853]
[1743688283430,0.272149,82306.0,82305.0,0.00079853]
[1743688283948,0.26,82306.0,82305.0,0.00079853]
[1743688284422,0.26,82306.0,82305.0,0.31280398]
[1743688284859,0.26,82306.0,82305.0,0.29826313]
[1743688285070,0.03,82331.0,82329.0,0.012146]
[1743688285277,0.0601681,82330.0,82329.0,0.5403886]
[1743688285489,0.0001681,82330.0,82329.0,0.89492945]
[1743688285693,0.0001681,82330.0,82329.0,0.94162945]
[1743688286965,0.0001681,82330.0,82329.0,0.34655645]
[1743688287161,0.0101681,82330.0,82329.0,0.2853156]
[1743688287570,0.0101681,82330.0,82329.0,0.16856]
[1743688287781,0.0101681,82330.0,82329.0,0.2974616]
[1743688288453,0.0101681,82330.0,82329.0,0.2984517]
[1743688288688,0.2530921,82330.0,82329.0,0.1695501]
[1743688288906,0.2652381,82330.0,82329.0,0.0009901]
[1743688289116,0.0101681,82330.0,82319.0,0.012147]
[1743688289323,0.242935,82327.0,82322.0,0.242947]
[1743688289601,0.17,82327.0,82323.0,0.1289026]
[1743688289868,0.24294,82325.0,82319.0,0.242955]
[1743688290110,0.24294,82325.0,82318.0,0.012148]
[1743688290111,0.0001681,82330.0,82326.0,0.25508]
[1743688290351,0.242949,82322.0,82315.0,0.012148]
[1743688290583,0.242949,82322.0,82311.0,0.012149]
[1743688290584,0.242963,82317.0,82316.0,0.1167556]
[1743688290871,0.04,82317.0,82313.0,0.242974]
[1743688291057,0.04,82317.0,82315.0,0.012148]
[1743688291264,0.04,82317.0,82314.0,0.3597256]
[1743688291484,0.04,82317.0,82316.0,0.012148]
[1743688291695,0.04,82317.0,82316.0,0.48344445]
[1743688291906,1.09428,82365.0,82329.0,0.595073]
[1743688292131,0.242839,82359.0,82329.0,0.89488945]
[1743688292340,1e-07,82330.0,82329.0,0.89988945]
[1743688292558,1e-07,82330.0,82329.0,0.90412009]
[1743688293508,1e-07,82330.0,82329.0,0.90515059]
[1743688294210,1e-07,82330.0,82329.0,0.90519059]
[1743688294659,1e-07,82330.0,82329.0,0.90523059]
[1743688295174,0.000168,82357.0,82356.0,0.242848]
[1743688295636,0.020168,82357.0,82356.0,0.55476645]
[1743688295928,1.061297,82386.0,82356.0,0.55476645]
[1743688295929,0.036413,82406.0,82357.0,0.35454085]
[1743688296138,0.02406731,82379.0,82378.0,0.254922]
[1743688296348,0.02406731,82379.0,82378.0,0.5401576]
[1743688296562,0.02420584,82379.0,82378.0,0.8801576]
[1743688296780,0.00153724,82409.0,82408.0,0.012134]
[1743688296990,0.00153724,82409.0,82408.0,0.1288896]
[1743688296991,0.26153724,82409.0,82408.0,0.1288896]
[1743688297207,0.26199891,82409.0,82408.0,0.1288896]
[1743688297483,0.26199891,82409.0,82408.0,0.48343045]
[1743688297761,1e-08,82413.0,82412.0,0.594817]
[1743688298049,1e-08,82413.0,82412.0,0.72611345]
[1743688298288,0.00013845,82413.0,82412.0,0.72611345]
[1743688298514,0.00013845,82413.0,82412.0,0.72710965]
[1743688298708,0.00013845,82413.0,82412.0,0.48442665]
[1743688298915,0.00013845,82413.0,82412.0,0.64073265]
[1743688299120,0.01013845,82413.0,82412.0,0.30073265]
[1743688299337,0.01013845,82413.0,82412.0,0.2862318]
[1743688299552,0.25281845,82413.0,82412.0,0.0010362]
[1743688299762,0.26495245,82413.0,82412.0,4e-05]
[1743688301098,0.38170805,82413.0,82412.0,4e-05]
[1743688301277,0.26495245,82413.0,82412.0,4e-05]
[1743688301496,0.18495245,82413.0,82412.0,4e-05]
[1743688301701,0.42495245,82413.0,82412.0,4e-05]
[1743688302462,0.88170805,82413.0,82412.0,4e-05]
[1743688303068,0.25485,82401.0,82400.0,0.05]
[1743688303318,0.50485,82401.0,82400.0,0.05]
[1743688304808,0.492715,82401.0,82400.0,0.05]
[1743688305009,0.25,82401.0,82400.0,0.05]
[1743688305217,0.492883,82401.0,82400.0,0.05]
[1743688305648,0.505018,82401.0,82400.0,0.05]
[1743688306291,0.492883,82401.0,82400.0,0.05]
[1743688307117,0.250168,82401.0,82400.0,0.05]
[1743688307525,0.250168,82401.0,82400.0,0.1667556]
[1743688307920,0.250168,82401.0,82400.0,0.1667956]
[1743688308627,0.505018,82401.0,82400.0,0.05004]
[1743688310027,0.250168,82401.0,82400.0,0.60450945]
[1743688310257,0.000168,82401.0,82400.0,0.60450945]
[1743688310649,0.000168,82401.0,82400.0,0.94450945]
[1743688311694,0.000168,82401.0,82400.0,0.1667956]
[1743688311695,0.010168,82401.0,82400.0,0.1667956]
[1743688311825,0.022303,82401.0,82400.0,0.05004]
[1743688313244,0.010168,82401.0,82400.0,0.05004]
[1743688313432,0.010168,82401.0,82400.0,0.1667956]
[1743688313685,0.252883,82401.0,82400.0,0.05004]
[1743688313885,0.010168,82401.0,82400.0,0.1667956]
[1743688314957,0.010168,82401.0,82400.0,0.1789306]
[1743688315147,0.010168,82401.0,82400.0,0.3472106]
[1743688315509,0.010168,82401.0,82400.0,0.36175145]
[1743688315706,0.010168,82401.0,82400.0,0.70175145]
[1743688315927,0.000168,82401.0,82400.0,0.70175145]
[1743688316723,1e-06,82401.0,82400.0,0.72675145]
[1743688316935,0.01,82431.0,82430.0,0.254761]
[1743688317110,0.06,82431.0,82430.0,0.3715166]
[1743688318099,0.03573729,82431.0,82430.0,0.3715166]
[1743688318528,0.03573729,82431.0,82430.0,0.3724967]
[1743688318732,0.03573729,82431.0,82430.0,0.1298667]
[1743688318929,0.03573729,82431.0,82430.0,0.3724967]
[1743688319534,0.03573729,82431.0,82430.0,0.1177757]
[1743688319734,0.03573729,82431.0,82430.0,0.1299067]
[1743688320420,0.03573729,82431.0,82430.0,0.14444755]
[1743688320622,0.0001682,82432.0,82431.0,0.60929885]
[1743688320823,0.0001682,82432.0,82431.0,0.77465445]
[1743688321036,2e-07,82439.0,82438.0,0.01213]
[1743688321249,0.02,82463.0,82460.0,0.594668]
[1743688321410,0.02,82463.0,82460.0,0.89420445]
[1743688321614,0.00021844,82461.0,82460.0,0.89420445]
[1743688322893,0.00021844,82461.0,82460.0,0.90336197]
[1743688323094,0.00021844,82461.0,82460.0,1.00202197]
[1743688323472,0.00021844,82461.0,82460.0,1.00301297]
[1743688323676,0.02,82463.0,82460.0,1.00301297]
[1743688323677,4.4e-07,82463.0,82462.0,0.624661]
[1743688323879,8.1e-07,82469.0,82468.0,0.60918385]
[1743688324084,8.1e-07,82469.0,82468.0,0.75093945]
[1743688324298,0.004,82499.0,82483.0,0.594597]
[1743688324615,0.0101681,82484.0,82483.0,0.55405345]
[1743688325154,0.0001681,82484.0,82483.0,0.55405345]
[1743688325357,0.0001681,82484.0,82483.0,0.89405345]
[1743688325693,1e-07,82484.0,82483.0,0.89405345]
[1743688325925,2.5408521,82488.0,82487.0,0.61412585]
[1743688326131,2.54099047,82488.0,82487.0,0.72588145]
[1743688326509,2.54099047,82488.0,82487.0,0.13129645]
[1743688326718,2.55099047,82488.0,82487.0,0.14341945]
[1743688326917,2.55099047,82488.0,82487.0,0.13129645]
[1743688327130,2.79345047,82488.0,82485.0,0.16812]
[1743688327332,2.55099047,82488.0,82486.0,0.1167556]
[1743688327535,2.79345247,82488.0,82486.0,0.1167556]
[1743688327731,0.242491,82477.0,82466.0,0.012126]
[1743688327931,0.252491,82477.0,82476.0,0.29941645]
[1743688328216,0.252491,82477.0,82476.0,0.1167556]
[1743688329038,0.252491,82477.0,82470.0,0.0009824]
[1743688329279,0.01,82477.0,82476.0,0.012124]
[1743688329478,0.01,82477.0,82476.0,0.71379816]
[1743688329694,0.01,82477.0,82476.0,0.72591445]
[1743688329896,2.54099047,82488.0,82482.0,0.01454085]
[1743688330116,2.58099047,82488.0,82483.0,0.1288786]
[1743688330323,2.58099047,82488.0,82470.0,0.25705185]
[1743688330531,2.58115847,82488.0,82486.0,0.242463]
[1743688330736,1.40828247,82488.0,82487.0,0.6848586]
[1743688330946,2e-07,82495.0,82494.0,0.619563]
[1743688331155,0.0001679,82514.0,82513.0,0.60904585]
[1743688331367,0.00062903,82514.0,82513.0,0.89384145]
[1743688331958,0.00062903,82514.0,82513.0,0.47129645]
[1743688332154,0.00062903,82514.0,82513.0,0.88172245]
[1743688332356,0.00062903,82514.0,82513.0,0.89384145]
[1743688332684,0.00062903,82514.0,82513.0,0.63933645]
[1743688332818,0.00062903,82514.0,82513.0,0.65145545]
[1743688333019,0.00062903,82514.0,82513.0,0.65149545]
[1743688333221,0.004,82529.0,82526.0,0.012117]
[1743688333476,0.00413828,82529.0,82528.0,0.36665785]
[1743688333630,0.00413828,82529.0,82528.0,0.47229315]
[1743688333857,0.01413828,82529.0,82528.0,0.6257923]
[1743688334057,0.01413828,82529.0,82528.0,0.2857923]
[1743688334880,0.01413828,82529.0,82528.0,0.30033315]
[1743688335293,0.01413828,82529.0,82528.0,0.2857923]
[1743688335493,0.25647728,82529.0,82528.0,0.2857923]
[1743688335698,0.25647728,82529.0,82528.0,0.2858323]
[1743688335897,0.26859328,82529.0,82528.0,0.0010367]
[1743688336239,0.26859328,82529.0,82528.0,4e-05]
[1743688337144,0.60859328,82529.0,82528.0,4e-05]
[1743688337353,0.60859328,82529.0,82513.0,4e-05]
[1743688337354,0.254502,82514.0,82513.0,4e-05]
[1743688337561,0.534502,82514.0,82513.0,4e-05]
[1743688338111,0.522383,82514.0,82513.0,4e-05]
[1743688338988,0.28,82514.0,82513.0,4e-05]
[1743688339736,0.28,82514.0,82513.0,0.1167956]
[1743688340144,0.28,82514.0,82513.0,0.13133645]
[1743688340393,0.24647828,82529.0,82514.0,0.01454085]
[1743688340394,0.242341,82528.0,82514.0,0.01454085]
[1743688340623,0.05,82528.0,82515.0,0.1167556]
[1743688340832,0.242383,82514.0,82513.0,8e-05]
[1743688341103,0.434502,82514.0,82513.0,8e-05]
[1743688341310,0.254542,82501.0,82500.0,0.05]
[1743688341533,0.512421,82501.0,82500.0,0.05]
[1743688341752,0.524542,82501.0,82500.0,0.05]
[1743688342676,0.6412976,82501.0,82500.0,0.05]
[1743688342873,2.0331376,82501.0,82500.0,1e-06]
[1743688343085,0.242542,82461.0,82458.0,0.16792]
[1743688343307,0.242542,82461.0,82459.0,0.1167556]
[1743688343308,0.02,82461.0,82459.0,0.1167556]
[1743688343538,0.02,82461.0,82458.0,0.00046113]
[1743688343539,0.262499,82461.0,82458.0,0.00046113]
[1743688343725,0.242544,82459.0,82458.0,0.00145553]
[1743688343937,0.04,82459.0,82458.0,0.11721673]
[1743688344585,0.04,82459.0,82458.0,0.35976373]
[1743688344803,0.04,82459.0,82458.0,0.13175758]
[1743688345414,0.04,82459.0,82458.0,0.11721673]
[1743688345820,0.282544,82459.0,82458.0,0.00046113]
[1743688346023,0.04,82459.0,82458.0,0.00050113]
[1743688346223,0.04,82459.0,82458.0,0.11725673]
[1743688346434,0.242507,82472.0,82458.0,0.13179758]
[1743688346632,0.242521,82468.0,82459.0,0.1167556]
[1743688346851,0.242521,82467.0,82459.0,0.1167556]
[1743688347057,0.292521,82467.0,82459.0,0.1167556]
[1743688347269,0.05,82467.0,82465.0,0.012126]
[1743688347452,0.05,82467.0,82466.0,0.13129645]
[1743688347601,0.242458,82489.0,82473.0,0.242503]
[1743688347803,0.1,82489.0,82478.0,0.012124]
[1743688348012,0.342457,82489.0,82479.0,0.2847156]
[1743688348414,0.1,82489.0,82486.0,0.012123]
[1743688348651,0.1,82489.0,82487.0,0.1167556]
[1743688349195,0.1,82489.0,82488.0,0.27154631]
[1743688349401,1.09668,82527.0,82502.0,0.01212]
[1743688349605,1.09668,82527.0,82493.0,0.012122]
[1743688349606,0.012118,82520.0,82503.0,0.2847156]
[1743688349812,0.26,82520.0,82504.0,0.25937468]
[1743688350015,0.26,82520.0,82510.0,0.254512]
[1743688350221,0.26,82520.0,82514.0,0.01454085]
[1743688350425,0.26,82520.0,82515.0,0.1167556]
[1743688350837,0.242368,82519.0,82515.0,0.1167556]
[1743688351043,0.042118,82519.0,82480.0,0.0723]
[1743688351250,0.042118,82519.0,82490.0,0.34]
[1743688351251,0.242408,82506.0,82490.0,0.34]
[1743688351461,0.01212,82503.0,82491.0,0.1167556]
[1743688351661,0.242435,82497.0,82491.0,0.2846756]
[1743688351879,0.02,82497.0,82491.0,0.2846756]
[1743688352291,0.242383,82514.0,82492.0,0.01454085]
[1743688352496,0.242383,82514.0,82493.0,0.1167556]
[1743688352497,0.24242,82502.0,82493.0,0.1167556]
[1743688352678,0.26242,82502.0,82493.0,0.1167556]
[1743688353081,0.02,82502.0,82493.0,0.1167556]
[1743688353242,0.262421,82502.0,82493.0,0.1167556]
[1743688353744,0.242427,82499.0,82497.0,0.0009829]
[1743688353983,0.272427,82499.0,82497.0,0.0009829]
[1743688354903,0.242447,82492.0,82491.0,0.16792]
[1743688355108,0.272447,82492.0,82491.0,0.16792]
[1743688355365,0.03,82492.0,82491.0,0.16792]
[1743688355567,0.242455,82490.0,82484.0,0.16788]
[1743688355779,0.242457,82489.0,82485.0,0.1167556]
[1743688355991,0.02,82489.0,82485.0,0.1167556]
[1743688356285,0.02,82489.0,82485.0,0.11721673]
[1743688357347,0.02,82489.0,82468.0,0.242516]
[1743688357348,0.242465,82486.0,82461.0,0.000336]
[1743688357563,0.242465,82486.0,82461.0,0.00047437]
[1743688357564,0.242535,82462.0,82461.0,0.00047437]
[1743688357776,0.282535,82462.0,82461.0,0.00047437]
[1743688357987,0.04,82462.0,82461.0,0.11722997]
[1743688358209,0.04,82462.0,82461.0,0.00047437]
[1743688358879,0.04,82462.0,82461.0,0.11722997]
[1743688359531,0.04,82462.0,82461.0,0.00047437]
[1743688359964,0.04,82462.0,82461.0,0.45722997]
[1743688360217,0.012123,82483.0,82462.0,0.01454085]
[1743688360445,0.242492,82477.0,82464.0,0.01454085]
[1743688360661,0.02,82477.0,82466.0,0.35454085]
[1743688360870,0.02,82477.0,82469.0,0.01454085]
[1743688361085,0.02,82477.0,82471.0,0.01454085]
[1743688361302,0.02,82477.0,82469.0,0.01696562]
[1743688361303,0.02,82477.0,82461.0,0.00051437]
[1743688361508,0.242528,82465.0,82462.0,0.1167556]
[1743688361737,0.252528,82465.0,82462.0,0.1167556]
[1743688361947,0.242531,82464.0,82462.0,0.1167556]
[1743688362156,0.242488,82478.0,82462.0,0.1167556]
[1743688362372,0.012124,82476.0,82462.0,0.1167556]
[1743688362564,0.242531,82464.0,82461.0,0.00051437]
[1743688362818,0.242531,82464.0,82462.0,0.1167556]
[1743688362819,0.01,82464.0,82462.0,0.1167556]
[1743688363913,0.25253,82464.0,82463.0,0.0009826]
[1743688364372,0.242535,82462.0,82461.0,0.00051437]
[1743688364585,0.262535,82462.0,82461.0,0.00051437]
[1743688364820,0.262495,82462.0,82461.0,0.00051437]
[1743688365490,0.01,82462.0,82461.0,0.00051437]
[1743688365721,0.01,82462.0,82461.0,0.11726997]
[1743688365897,0.01,82462.0,82461.0,0.00051437]
[1743688366260,0.01,82462.0,82461.0,0.11726997]
[1743688367311,0.01,82462.0,82461.0,0.11730997]
[1743688367523,0.264661,82462.0,82461.0,0.00055437]
[1743688367685,0.3814166,82462.0,82461.0,3.7e-07]
[1743688367902,0.4274166,82462.0,82461.0,3.7e-07]
[1743688368102,0.254671,82459.0,82441.0,0.004]
[1743688368332,0.9914266,82459.0,82441.0,0.004]
[1743688368502,0.254723,82442.0,82441.0,0.004]
[1743688368872,1.541963,82442.0,82441.0,0.00413844]
[1743688369263,1.6587186,82442.0,82441.0,0.00413844]
[1743688369505,1.6587186,82442.0,82430.0,0.0003754]
[1743688369506,0.352129,82441.0,82440.0,4.4e-07]
[1743688369771,0.9579246,82441.0,82440.0,4.4e-07]
[1743688370187,0.496209,82441.0,82440.0,4.4e-07]
[1743688370426,0.836209,82441.0,82440.0,4.4e-07]
[1743688370647,0.9529246,82441.0,82440.0,4.4e-07]
[1743688370852,0.836169,82441.0,82440.0,4.4e-07]
[1743688371058,0.9529246,82441.0,82440.0,4.4e-07]
[1743688371258,0.9578846,82441.0,82440.0,4.4e-07]
[1743688371680,0.9529246,82441.0,82440.0,4.4e-07]
[1743688372071,0.836169,82441.0,82440.0,4.4e-07]
[1743688372478,0.3162,82441.0,82440.0,4.4e-07]
[1743688372686,0.27,82441.0,82440.0,4.4e-07]
[1743688373017,0.27,82441.0,82440.0,4.044e-05]
[1743688373230,0.27,82441.0,82440.0,0.13133689]
[1743688373436,0.27,82441.0,82440.0,0.47133689]
[1743688373648,0.27,82441.0,82440.0,0.45679604]
[1743688373857,0.27,82441.0,82440.0,0.47232649]
[1743688374059,0.27,82441.0,82440.0,0.48445649]
[1743688374317,0.27,82441.0,82440.0,0.47232649]
[1743688374527,0.27,82441.0,82440.0,0.64024649]
[1743688374703,0.00013819,82442.0,82441.0,0.60926685]
[1743688374944,0.00013819,82442.0,82441.0,0.72602245]
[1743688375152,0.012122,82488.0,82462.0,0.242535]
[1743688375153,0.242489,82478.0,82462.0,0.242535]
[1743688375364,0.242489,82478.0,82459.0,0.35454085]
[1743688375365,0.242528,82465.0,82463.0,0.2846756]
[1743688375571,0.02,82465.0,82463.0,0.2846756]
[1743688375786,1.03718472,82481.0,82463.0,0.2846756]
[1743688375997,0.242513,82470.0,82463.0,0.2846756]
[1743688376204,0.272513,82470.0,82463.0,0.2846756]
[1743688376624,0.03,82470.0,82463.0,0.2846756]
[1743688376832,0.272513,82470.0,82463.0,0.2846756]
[1743688377260,0.03,82470.0,82463.0,0.16792]
[1743688377478,0.012125,82469.0,82453.0,0.01454085]
[1743688377687,0.06,82469.0,82455.0,0.012127]
[1743688377899,0.06,82469.0,82454.0,0.28706095]
[1743688377900,0.242531,82464.0,82456.0,0.11918087]
[1743688378105,0.242534,82463.0,82456.0,0.1167556]
[1743688378310,0.282494,82463.0,82456.0,0.1167556]
[1743688378518,0.04,82463.0,82456.0,0.1167556]
[1743688378731,0.04,82463.0,82457.0,0.35454085]
[1743688378941,0.04,82463.0,82462.0,0.60920185]
[1743688379151,1.26754272,82481.0,82466.0,0.01454085]
[1743688379362,0.05013839,82481.0,82477.0,0.24249]
[1743688379573,0.05013839,82481.0,82478.0,0.2846356]
[1743688380451,0.29261839,82481.0,82478.0,0.2846356]
[1743688380666,0.242484,82480.0,82478.0,0.16788]
[1743688380893,0.03,82480.0,82479.0,0.1167556]
[1743688381389,0.03,82480.0,82479.0,0.72833021]
[1743688381622,0.00013839,82481.0,82480.0,0.36666485]
[1743688381861,0.00013839,82481.0,82480.0,0.47129645]
[1743688381862,0.00030639,82481.0,82480.0,0.47129645]
[1743688382060,0.02030639,82481.0,82480.0,0.1167556]
[1743688382874,0.242486,82479.0,82477.0,4e-05]
[1743688383082,0.02,82479.0,82477.0,4e-05]
[1743688383287,0.02,82479.0,82478.0,0.14342045]
[1743688383489,0.02,82479.0,82478.0,0.48342045]
[1743688383720,0.00030639,82481.0,82480.0,0.02666485]
[1743688383957,0.00030639,82481.0,82480.0,0.48584481]
[1743688384189,0.00030639,82481.0,82480.0,0.48440765]
[1743688384662,0.00030639,82481.0,82480.0,0.72689065]
[1743688385137,0.004,82499.0,82498.0,0.594551]
[1743688385382,0.004,82499.0,82498.0,0.63909645]
[1743688385671,0.00446113,82499.0,82498.0,0.88152645]
[1743688385884,0.242488,82478.0,82475.0,0.1678]
[1743688386095,0.012121,82495.0,82477.0,0.1167956]
[1743688386314,0.242484,82480.0,82478.0,0.1167556]
[1743688386476,0.262484,82480.0,82478.0,0.1167556]
[1743688386677,0.262483,82480.0,82478.0,0.1167556]
[1743688386932,0.262483,82480.0,82477.0,4e-05]
[1743688386933,0.242488,82478.0,82477.0,4e-05]
[1743688387154,0.272488,82478.0,82477.0,4e-05]
[1743688387666,0.284612,82478.0,82477.0,4e-05]
[1743688387878,0.272488,82478.0,82477.0,8e-05]
[1743688389090,0.284612,82478.0,82477.0,8e-05]
[1743688389642,0.4013676,82478.0,82477.0,8e-05]
[1743688390009,0.254661,82462.0,82461.0,0.000336]
[1743688390242,0.6014166,82462.0,82461.0,0.000336]
[1743688390856,0.254726,82441.0,82440.0,4.044e-05]
[1743688391120,0.23,82441.0,82440.0,0.11679604]
[1743688391354,0.23,82441.0,82440.0,0.13147528]
[1743688391533,0.23,82441.0,82440.0,0.11693443]
[1743688391882,0.242585,82446.0,82441.0,0.35454085]
[1743688392080,0.01,82446.0,82443.0,0.34]
[1743688392327,0.01,82446.0,82444.0,0.1167556]
[1743688392501,0.01,82446.0,82445.0,0.1678]
[1743688392705,0.01,82446.0,82445.0,0.2845556]
[1743688393509,0.01,82446.0,82445.0,0.65122545]
[1743688393711,0.012123,82482.0,82460.0,0.01454085]
[1743688393911,0.242511,82471.0,82461.0,0.11918072]
[1743688394107,0.292511,82471.0,82469.0,0.0009942]
[1743688394530,0.05,82471.0,82469.0,0.0009942]
[1743688394730,0.242512,82470.0,82469.0,0.0009942]
[1743688394932,0.242556,82456.0,82448.0,0.1678]
[1743688395137,0.252556,82456.0,82450.0,0.34]
[1743688395412,0.01,82456.0,82452.0,0.34]
[1743688395619,0.242562,82453.0,82452.0,0.34]
[1743688395830,0.242562,82453.0,82448.0,0.00013839]
[1743688395831,0.242573,82450.0,82448.0,0.00013839]
[1743688396013,0.012128,82449.0,82448.0,0.00013839]
[1743688396329,0.09,82449.0,82448.0,0.00013839]
[1743688396484,0.09,82449.0,82448.0,0.11689399]
[1743688397270,0.09,82449.0,82448.0,0.00013839]
[1743688398072,0.102128,82449.0,82448.0,0.00013839]
[1743688398325,0.09,82449.0,82448.0,0.00013839]
[1743688399939,0.102128,82449.0,82448.0,0.00013839]
[1743688400142,0.2188836,82449.0,82448.0,3.9e-07]
[1743688400345,0.102128,82449.0,82448.0,3.9e-07]
[1743688400776,0.09,82449.0,82448.0,3.9e-07]
[1743688400932,0.102128,82449.0,82448.0,3.9e-07]
[1743688401723,0.2188836,82449.0,82448.0,3.9e-07]
[1743688402333,0.102128,82449.0,82448.0,3.9e-07]
[1743688403467,0.09,82449.0,82448.0,0.11675599]
[1743688403700,0.045,82471.0,82449.0,0.34]
[1743688403701,0.012125,82468.0,82449.0,0.34]
[1743688403909,0.24255,82457.0,82449.0,0.4567556]
[1743688404111,0.03,82457.0,82455.0,0.0009898]
[1743688404329,0.272551,82457.0,82455.0,0.0009898]
[1743688404533,0.03,82457.0,82455.0,0.0009898]
[1743688404757,0.27255,82457.0,82455.0,0.0009898]
[1743688406210,0.27255,82457.0,82448.0,3.9e-07]
[1743688406211,0.254702,82449.0,82448.0,3.9e-07]
[1743688406415,0.242618,82434.0,82433.0,0.15854083]
[1743688406591,0.242627,82431.0,82430.0,0.0003754]
[1743688406801,0.262627,82431.0,82430.0,0.0003754]
[1743688407015,0.02,82431.0,82430.0,0.00051359]
[1743688407142,0.262627,82431.0,82430.0,0.00051359]
[1743688408591,0.274758,82431.0,82430.0,0.00051359]
[1743688409173,0.262627,82431.0,82430.0,0.00051359]
[1743688411035,0.274758,82431.0,82430.0,0.00051359]
[1743688411235,0.262627,82431.0,82430.0,0.00051359]
[1743688411445,0.02,82431.0,82430.0,0.00051359]
[1743688411652,0.02,82431.0,82430.0,0.11726919]
[1743688411913,0.02,82431.0,82430.0,0.37203019]
[1743688412117,0.02,82431.0,82430.0,0.11726919]
[1743688412567,0.02,82431.0,82430.0,0.28502919]
[1743688412975,0.262627,82431.0,82430.0,0.16827359]
[1743688413618,0.02,82431.0,82430.0,0.16827359]
[1743688413837,0.02,82431.0,82430.0,0.28502919]
[1743688414170,0.02,82431.0,82430.0,0.28602439]
[1743688414800,0.242568,82451.0,82430.0,0.55532624]
[1743688414998,0.242568,82451.0,82440.0,0.01213]
[1743688414999,0.17,82451.0,82440.0,0.01213]
[1743688415197,0.17,82451.0,82441.0,0.1167556]
[1743688415401,0.17,82451.0,82441.0,0.1288846]
[1743688415606,0.17,82451.0,82450.0,0.26923985]
[1743688415860,0.17,82451.0,82450.0,0.55375545]
[1743688416247,0.17,82451.0,82450.0,0.88162745]
[1743688416448,0.17,82451.0,82450.0,0.89375545]
[1743688416648,0.000168,82471.0,82450.0,0.89375545]
[1743688416649,0.000168,82471.0,82465.0,0.34]
[1743688416808,0.010168,82471.0,82466.0,0.2845156]
[1743688417001,0.242519,82468.0,82466.0,0.2845156]
[1743688417293,0.272519,82468.0,82466.0,0.16776]
[1743688417674,0.272519,82468.0,82425.0,0.025]
[1743688417675,0.012126,82463.0,82425.0,0.025]
[1743688417876,0.012126,82463.0,82462.0,0.254661]
[1743688417877,0.03,82463.0,82462.0,0.254661]
[1743688418076,0.03,82463.0,82462.0,0.13129645]
[1743688418888,0.03,82463.0,82462.0,0.48584759]
[1743688419025,0.00013827,82468.0,82467.0,0.60918785]
[1743688419231,2.7e-07,82468.0,82467.0,0.75193425]
[1743688419436,0.290956,82523.0,82498.0,0.60909185]
[1743688419655,0.00446113,82499.0,82498.0,0.6244756]
[1743688419902,0.00423953,82499.0,82498.0,0.65113745]
[1743688420113,0.00423953,82499.0,82498.0,0.63901645]
[1743688420941,0.00423953,82499.0,82498.0,0.4567556]
[1743688421165,0.01423953,82499.0,82482.0,0.16772]
[1743688421381,0.012121,82498.0,82483.0,0.1167556]
[1743688421574,0.012121,82498.0,82462.0,0.05848779]
[1743688421575,0.242458,82489.0,82484.0,0.1167556]
[1743688421786,0.05,82489.0,82488.0,0.012122]
[1743688422004,0.05,82489.0,82488.0,0.14341845]
[1743688422567,0.05,82489.0,82488.0,0.13129645]
[1743688423030,0.05,82489.0,82488.0,0.2844356]
[1743688423486,0.05,82489.0,82488.0,0.16768]
[1743688423688,0.242479,82482.0,82476.0,0.34]
[1743688423882,0.052123,82482.0,82477.0,0.1167556]
[1743688424184,0.052123,82482.0,82465.0,0.16764]
[1743688424185,0.04,82482.0,82465.0,0.16764]
[1743688424421,0.04,82482.0,82478.0,0.000995]
[1743688424631,0.254612,82479.0,82478.0,0.000995]
[1743688424811,0.242524,82466.0,82465.0,0.16764]
[1743688425058,0.242524,82466.0,82450.0,0.11941005]
[1743688425059,0.04,82466.0,82454.0,0.16764]
[1743688425286,0.242556,82455.0,82454.0,0.2843956]
[1743688425506,0.242556,82455.0,82450.0,0.10728205]
[1743688425507,0.242568,82451.0,82450.0,0.10728205]
[1743688425711,0.242583,82446.0,82444.0,0.10728205]
[1743688425942,0.282583,82446.0,82444.0,0.10728205]
[1743688426153,0.282583,82446.0,82444.0,0.10742032]
[1743688426365,0.012129,82445.0,82444.0,0.10742032]
[1743688426573,0.25,82445.0,82444.0,0.10742032]
[1743688426794,0.262129,82445.0,82444.0,0.10742032]
[1743688428231,0.3788846,82445.0,82444.0,3.2e-07]
[1743688428602,1.4262446,82445.0,82444.0,3.2e-07]
[1743688429006,1.309489,82445.0,82444.0,3.2e-07]
[1743688429817,1.4262446,82445.0,82444.0,3.2e-07]
[1743688430221,1.309489,82445.0,82444.0,3.2e-07]
[1743688431749,1.7712046,82445.0,82444.0,3.2e-07]
[1743688431974,1.7712046,82445.0,82430.0,0.0003754]
[1743688431975,0.254758,82431.0,82430.0,0.0003754]
[1743688432179,0.6215136,82431.0,82430.0,0.00051359]
[1743688432397,0.6690136,82431.0,82430.0,0.00051359]
[1743688432622,0.552258,82431.0,82430.0,0.00051359]
[1743688432847,0.504758,82431.0,82430.0,0.00051359]
[1743688433622,0.6215136,82431.0,82430.0,0.00051359]
[1743688434513,0.9615136,82431.0,82430.0,5.9e-07]
[1743688434732,0.9664736,82431.0,82430.0,5.9e-07]
[1743688434975,0.254817,82412.0,82404.0,0.0003354]
[1743688435217,0.6215726,82412.0,82404.0,0.0003354]
[1743688436420,0.012135,82401.0,82400.0,6e-07]
[1743688436617,0.012135,82401.0,82400.0,0.00046227]
[1743688436618,0.9516056,82401.0,82400.0,0.00046227]
[1743688437908,0.49485,82401.0,82400.0,0.00046227]
[1743688438325,0.49485,82401.0,82400.0,0.00050227]
[1743688440577,0.6116056,82401.0,82400.0,0.00050227]
[1743688440736,0.49485,82401.0,82400.0,0.00050227]
[1743688441942,0.49485,82401.0,82381.0,0.004]
[1743688441943,0.254909,82382.0,82381.0,0.004]
[1743688442139,0.534909,82382.0,82381.0,0.00413844]
[1743688442523,0.6516646,82382.0,82381.0,0.00413844]